[Event "Croatian 1B League 2022"]
[Site "Porec"]
[Date "2022.09.29"]
[Round "6.4"]
[White "Vojak, Daniel"]
[Black "Zelenika, Srdjan"]
[Result "1/2-1/2"]
[ECO "A15"]
[WhiteElo "2300"]
[BlackElo "2207"]
[Annotator "TA"]
[PlyCount "40"]
[EventDate "2022.09.24"]
[EventType "team-tourn"]
[EventCountry "CRO"]
[SourceTitle "playchess.com"]
[Source "ChessBase"]
[SourceQuality "1"]
[TimeControl "40/5400+30:1800+30"]

{[%evp 11,27,-13,-10,-9,-14,-6,5,-20,-15,-24,-15,-5,-11,-15,-15,-10,0,-5]} 1. Nf3 {[%emt 0:00:10]} Nf6 {[%emt 0:00:18]} 2. c4 {[%emt 0:00:06]} g6 {[%emt 0:00:21]} 3. b4 {[%emt 0:00:05]} Bg7 {[%emt 0:00:34]} 4. Bb2 {[%emt 0:00:06]} O-O {[%emt 0:00:48]} 5. g3 {[%emt 0:00:43]} c6 {[%emt 0:00:47]} 6. Bg2 {[%emt 0:00:30]} d5 {[%emt 0:00:32]} 7. cxd5 {[%emt 0:00:31] 7.Na3 is not played anymore. A15: English Opening: 1...Nf6.} Nxd5 {[%emt 0:00:46]} 8. Bxg7 {[%emt 0:00:13]} Kxg7 {[%emt 0:00:05]} 9. Qb3 {[%emt 0:00:23]} Qb6 {[%emt 0:00:49]} 10. a3 {[%emt 0:05:16]} a5 {[%emt 0:02:00][%cal Ra5b4]} 11. Nc3 {[%emt 0:00:10] The position is equal.} axb4 {[%emt 0:02:20]} 12. Nxd5 {[%emt 0:00:09]} cxd5 {[%emt 0:00:04]} 13. O-O {[%emt 0:00:46]} Nc6 {[%emt 0:08:04]} 14. axb4 {[%emt 0:08:36] [#] An interesting draw.  Weighted Error Value: White=0.03 (flawless) /Black=0.03 (flawless)} {Predecessor:} Rxa1 $146 15. Rxa1 Qxb4 16. Qxd5 Be6 17. Qd3 Bc4 18. Qe4 Ba6 19. Qxb4 Nxb4 20. Rb1 Nc6 {½-½ (54) Harsha,B (2495)-Gupta,A (2608) Ahmedabad 2020} 1/2-1/2

[Event "Croatian 1B League 2022"]
[Site "Porec"]
[Date "2022.09.29"]
[Round "6.5"]
[White "Klobucar, Dean"]
[Black "Sevo, Igor"]
[Result "1/2-1/2"]
[ECO "B53"]
[WhiteElo "2196"]
[BlackElo "2255"]
[Annotator "TA"]
[PlyCount "27"]
[EventDate "2022.09.24"]
[EventType "team-tourn"]
[EventCountry "CRO"]
[SourceTitle "playchess.com"]
[Source "ChessBase"]
[SourceQuality "1"]
[TimeControl "40/5400+30:1800+30"]

{[%evp 9,27,18,6,16,10,4,1,6,8,8,15,10,20,25,20,6,18,17,16,8]} 1. e4 {[%emt 0:00:02]} c5 {[%emt 0:00:11]} 2. Nf3 {[%emt 0:00:16]} d6 {[%emt 0:00:08]} 3. d4 {[%emt 0:00:12]} cxd4 {[%emt 0:00:07]} 4. Qxd4 {[%emt 0:00:03]} Nc6 {[%emt 0:00:11]} 5. Bb5 {[%emt 0:00:04]} a6 {[%emt 0:00:11]} 6. Bxc6+ {[%emt 0:00:06] B53: Sicilian: 2...d6: Lines with Qxd4.} bxc6 {[%emt 0:00:05]} 7. c4 {[%emt 0:00:21]} e5 {[%emt 0:00:13]} 8. Qd3 {[%emt 0:00:22]} Ne7 {[%emt 0:00:11]} 9. c5 {[%emt 0:00:50]} Ng6 {[%emt 0:03:28]} 10. cxd6 {[%emt 0:01:03]} Qxd6 {[%emt 0:00:50]} 11. Qxd6 {[%emt 0:00:49]} Bxd6 {[%emt 0:00:07]} 12. Be3 {[%emt 0:00:48] [#] The position is equal.} Nf4 $146 {[%emt 0:20:26]} ({Predecessor:} 12... a5 13. O-O f6 14. Rc1 Ra6 15. Nbd2 Be6 16. Ne1 Kf7 17. Nd3 Rd8 18. Kf1 Bb4 {½-½ (60) Rapport,R (2764)-Firouzja,A (2793) Madrid 2022}) 13. Bxf4 {[%emt 0:04:04]} exf4 {[%emt 0:00:10]} 14. O-O {[%emt 0:00:11] An interesting draw.  Weighted Error Value: White=0.03 (flawless) /Black=0.04 (flawless)} 1/2-1/2

[Event "Croatian 1B League 2022"]
[Site "Porec"]
[Date "2022.09.29"]
[Round "6.6"]
[White "Novosel, Lovro"]
[Black "Cubric, Andrija"]
[Result "1-0"]
[ECO "E05"]
[WhiteElo "2274"]
[BlackElo "1830"]
[Annotator "TA"]
[PlyCount "77"]
[EventDate "2022.09.24"]
[EventType "team-tourn"]
[EventCountry "CRO"]
[SourceTitle "playchess.com"]
[Source "ChessBase"]
[SourceQuality "1"]
[TimeControl "40/5400+30:1800+30"]

{[%evp 21,77,8,16,0,16,22,42,46,40,15,47,34,73,14,10,10,13,0,57,-42,66,0,58,14,33,-50,10,25,18,25,103,0,0,0,0,-84,199,204,221,221,214,209,212,155,123,89,93,107,191,41,170,77,710,722,577,388,1250,1239]} 1. Nf3 {[%emt 0:00:06]} d5 {[%emt 0:00:07]} 2. g3 {[%emt 0:00:24]} Nf6 {[%emt 0:00:26]} 3. Bg2 {[%emt 0:00:09]} e6 {[%emt 0:04:41]} 4. O-O {[%emt 0:00:29]} Be7 {[%emt 0:03:44]} 5. d4 {[%emt 0:00:40]} O-O {[%emt 0:01:07]} 6. c4 {[%emt 0:00:44]} dxc4 {[%emt 0:02:51]} 7. Qc2 {[%emt 0:02:08]} a6 {[%emt 0:03:26]} 8. Qxc4 {[%emt 0:02:21]} b5 {[%emt 0:05:30]} 9. Qc2 {[%emt 0:00:23]} Bb7 {[%emt 0:01:16]} 10. Bd2 {[%emt 0:00:40]} Be4 {[%emt 0:01:52]} 11. Qc1 {[%emt 0:01:41]} Bb7 {[%emt 0:01:00]} 12. Rd1 {[%emt 0:03:05] E05: Open Catalan: 5 Nf3 Be7.} Nbd7 {[%emt 0:01:43]} 13. Ba5 {[%emt 0:00:27]} Nb6 {[%emt 0:09:16]} 14. Nbd2 {[%emt 0:11:15] White is slightly better.} Rc8 {[%emt 0:07:47] [#]} 15. b3 $146 {[%emt 0:06:49]} ({Predecessor:} 15. b4 Bd6 16. Qc2 Qe7 17. a3 Nfd7 18. Rac1 f5 19. e3 Rce8 20. Ne1 Bxg2 21. Kxg2 {1-0 (56) Lopez Mulet,I (2397)-Cruz Lledo,P (2445) Linares 2019}) 15... Bd5 {[%emt 0:15:32]} 16. Qb2 {[%emt 0:06:02]} Ne4 {[%emt 0:05:02]} 17. Nf1 {[%emt 0:19:51]} ({White should play} 17. Rac1 $16) 17... b4 $11 {[%emt 0:08:16]} 18. Ne3 {[%emt 0:04:03]} Nc3 {[%emt 0:01:11]} 19. Rd2 {[%emt 0:01:19][%cal Oa2a3]} Be4 {[%emt 0:02:41]} (19... Qe8 $11) 20. Nc4 {[%emt 0:07:08] [#]} (20. a3 $14) 20... f6 {[%emt 0:09:37]} (20... Nca4 $1 $15 21. Qc1 Qd5) 21. Rc1 {[%emt 0:04:18]} (21. a3 $1 $14) 21... Ncd5 {[%emt 0:01:29]} (21... Rb8 $11) 22. e3 {[%emt 0:06:25]} Qe8 {[%emt 0:01:50] [#]} 23. a4 {[%emt 0:04:51] Against Qb5} ({Better is} 23. Bh3 $1 $14 Qf7 (23... Bxf3 24. Bxe6+) 24. Ne1) 23... Qh5 {[%emt 0:01:55]} (23... bxa3 $1 $15 24. Nxa3 Qh5) 24. Ne1 {[%emt 0:01:06]} Bxg2 25. Nxg2 {[%emt 0:00:07]} Nxc4 {[%emt 0:02:27]} (25... g5 $11 {keeps the balance.}) 26. bxc4 {[%emt 0:03:15]} (26. Rxc4 $16 {Qc2 is the strong threat.} Nc3 27. Bxb4 Bxb4 28. Rxb4) 26... Nxe3 $1 {[%emt 0:00:25]} 27. Nxe3 {[%emt 0:00:55]} Qxa5 {[%emt 0:00:10]} 28. Qb3 {[%emt 0:00:08]} (28. c5 $1 $11 Qxa4 29. Ra1) 28... c6 $2 {[%emt 0:01:51][%mdl 8192]} (28... c5 $17 29. d5 Qb6) 29. c5 $18 {[%emt 0:00:26]} Kh8 {[%emt 0:02:47]} 30. Qxe6 {[%emt 0:00:13]} Rfe8 {[%emt 0:00:47]} 31. Qb3 {[%emt 0:01:12]} Rb8 {[%emt 0:00:51]} 32. h4 {[%emt 0:04:21][%cal Bh2h4,Bh4h5][%mdl 32]} Bf8 {[%emt 0:01:43]} 33. h5 {[%emt 0:00:59] White is more active.} Qc7 {[%emt 0:01:39]} 34. d5 {[%emt 0:00:58] aiming for d6.} cxd5 {[%emt 0:00:26] [#]} (34... Qf7 $16) 35. Nxd5 {[%emt 0:00:28]} (35. c6 $1 $18) 35... Qe5 {[%emt 0:00:45]} (35... Qc6 $1 $14) 36. Nf4 {[%emt 0:01:45] Threatens to win with Rd7.} Qc7 {[%emt 0:01:42][%mdl 8192] Prevents Rd7.} ({Weaker is} 36... Bxc5 37. Rd5 Bxf2+ 38. Kxf2 $16) (36... Rec8 $16) 37. c6 {[%emt 0:00:15]} Bd6 {[%emt 0:00:24]} 38. Ne6 {[%emt 0:00:37]} Qf7 {[%emt 0:00:33]} (38... Qe7 39. c7 Rbc8) 39. Rxd6 {[%emt 0:00:07] Weighted Error Value: White=0.44/Black=0.51} 1-0

[Event "Croatian 1B League 2022"]
[Site "Porec"]
[Date "2022.09.29"]
[Round "6.7"]
[White "Neugebauer, Martin"]
[Black "Teclaf, Pawel"]
[Result "1/2-1/2"]
[ECO "C65"]
[WhiteElo "2517"]
[BlackElo "2547"]
[Annotator "TA"]
[PlyCount "91"]
[EventDate "2022.09.24"]
[EventType "team-tourn"]
[EventCountry "CRO"]
[SourceTitle "playchess.com"]
[Source "ChessBase"]
[SourceQuality "1"]
[TimeControl "40/5400+30:1800+30"]

{[%evp 9,90,2,16,17,6,8,20,22,27,15,22,-32,19,0,0,0,0,0,0,0,0,0,10,22,10,0,8,10,48,48,92,99,78,38,45,31,43,7,7,7,7,7,7,7,14,7,7,8,8,7,7,7,7,7,10,10,10,10,10,0,0,0,0,0,0,0,0,0,0,0,0,0,0,0,0,0,0,0,0,0,0,0,0]} 1. e4 {[%emt 0:00:17]} e5 {[%emt 0:00:04]} 2. Nf3 {[%emt 0:00:21]} Nc6 {[%emt 0:00:03]} 3. Bb5 {[%emt 0:00:26]} Nf6 {[%emt 0:00:07]} 4. d3 {[%emt 0:04:03]} Bc5 {[%emt 0:01:50]} 5. c3 {[%emt 0:00:08]} O-O {[%emt 0:00:06]} 6. O-O {[%emt 0:01:22] C65: Ruy Lopez: Berlin Defence (3...Nf6), unusual lines and 4 0-0 Bc5.} Re8 {[%emt 0:00:13]} 7. Bg5 {[%emt 0:08:06]} h6 {[%emt 0:00:24] 7...a6 is the fancy move.} 8. Bh4 {[%emt 0:00:05]} Be7 {[%emt 0:00:47]} 9. Nbd2 {[%emt 0:04:16]} d6 {[%emt 0:01:31]} 10. Re1 {[%emt 0:01:11]} (10. Nc4 $11) 10... Bd7 {[%emt 0:09:06]} ({Black should play} 10... g5 $1 $15 11. Bg3 g4) 11. d4 {[%emt 0:04:00] [#]} (11. Nf1 {with more complications.} Nh7 12. Bxe7 Nxe7 13. Bxd7 Qxd7 14. d4) 11... Nxd4 $146 {[%emt 0:04:03]} ({Predecessor:} 11... Nh7 12. Bxe7 Rxe7 13. a3 Qe8 14. b4 Nxd4 15. Nxd4 Bxb5 16. Nxb5 Qxb5 17. c4 Qd7 18. Qc2 c6 {0-1 (58) Gutierrez Ordonez,J-Quintero Rangel,E (1827) Bogota 2013}) 12. Nxd4 {[%emt 0:00:30]} exd4 {[%emt 0:00:10]} 13. Bxd7 {[%emt 0:00:07]} Nxd7 {[%emt 0:00:16]} 14. Bxe7 {[%emt 0:00:10]} Rxe7 {[%emt 0:07:24]} 15. cxd4 {[%emt 0:00:07]} d5 {[%emt 0:07:38]} 16. e5 {[%emt 0:05:33]} c5 {[%emt 0:00:50]} 17. f4 {[%emt 0:09:03]} Qb6 {[%emt 0:04:16]} 18. Nf3 {[%emt 0:01:11]} cxd4 {[%emt 0:19:13]} (18... Qxb2 {looks sharper.} 19. Rb1 Qxa2 20. Rxb7 Rae8) 19. Qxd4 {[%emt 0:02:45]} f6 {[%emt 0:03:24]} 20. Qxb6 {[%emt 0:15:32] White is more active.} axb6 {[%emt 0:00:12]} 21. exf6 {[%emt 0:00:19]} (21. e6 {seems wilder.} Nc5 22. f5 g6 23. fxg6 Rxe6 24. Rxe6 Nxe6 25. Re1) 21... Rxe1+ {[%emt 0:00:25]} 22. Rxe1 {[%emt 0:00:49] [#] Black must now prevent fxg7.} Nxf6 $16 {[%emt 0:00:34][%mdl 4096] Endgame KRN-KRN} 23. Re6 {[%emt 0:00:40]} (23. a3 $5 {[%cal Re1e6]}) 23... Rxa2 {[%emt 0:09:51] The position is equal.} 24. Rxb6 {[%emt 0:00:15]} Ng4 {[%emt 0:07:04] ( -> ...Ra1+)} 25. g3 {[%emt 0:00:57]} Ra1+ {[%emt 0:01:53]} 26. Kg2 {[%emt 0:00:05]} Ne3+ {[%emt 0:00:03]} 27. Kh3 {[%emt 0:09:09]} Rf1 {[%emt 0:03:32]} 28. Ne5 {[%emt 0:01:25]} Nc4 {[%emt 0:00:53]} 29. Nxc4 {[%emt 0:03:26]} dxc4 {[%emt 0:00:11]} 30. Rxb7 $11 {[%emt 0:00:10] KR-KR} Rf2 {[%emt 0:00:50]} 31. Rb4 {[%emt 0:03:58]} Kf7 {[%emt 0:01:18]} 32. f5 {[%emt 0:00:47]} h5 {[%emt 0:09:59]} 33. Rxc4 {[%emt 0:03:07] Hoping for Rh4.} Rxb2 {[%emt 0:00:28]} 34. Kh4 {[%emt 0:00:43]} Rxh2+ {[%emt 0:01:22]} 35. Kg5 {[%emt 0:00:05]} Rg2 {[%emt 0:01:40]} 36. Rc7+ {[%emt 0:00:12]} Kf8 {[%emt 0:00:11]} 37. Rc3 {[%emt 0:00:07]} Kf7 {[%emt 0:01:38]} 38. Kxh5 {[%emt 0:00:22]} g6+ {[%emt 0:01:24]} 39. fxg6+ {[%emt 0:00:27]} Kg7 {[%emt 0:02:15]} 40. Kg5 {[%emt 0:00:00]} Rg1 {[%emt 0:00:00]} 41. g4 {[%emt 0:01:51]} Ra1 {[%emt 0:05:21]} 42. Rc7+ {[%emt 0:00:17]} Kg8 {[%emt 0:00:28]} 43. g7 {[%emt 0:00:20]} Ra5+ {[%emt 0:01:20]} 44. Kh6 {[%emt 0:00:05]} Ra6+ $1 {[%emt 0:00:04]} 45. Kh5 {[%emt 0:00:04]} Rh6+ {[%emt 0:00:08]} 46. Kxh6 {[%emt 0:00:26] Weighted Error Value: White=0.06 (flawless) /Black=0.05 (flawless)} 1/2-1/2

[Event "Croatian 1B League 2022"]
[Site "Porec"]
[Date "2022.09.29"]
[Round "6.8"]
[White "Sprenger, Jan Michael"]
[Black "Makaj, Marko"]
[Result "0-1"]
[ECO "B01"]
[WhiteElo "2475"]
[BlackElo "2387"]
[Annotator "TA"]
[PlyCount "152"]
[EventDate "2022.09.24"]
[EventType "team-tourn"]
[EventCountry "CRO"]
[SourceTitle "playchess.com"]
[Source "ChessBase"]
[SourceQuality "1"]
[TimeControl "40/5400+30:1800+30"]

{[%evp 10,152,42,39,40,44,33,18,28,2,4,10,11,16,10,15,13,17,15,12,24,0,0,0,0,0,0,0,0,0,0,0,0,-57,-68,-65,-65,-57,-30,-63,-16,-68,-51,-142,-143,-150,-135,-149,-134,-167,-120,-114,-112,-162,-140,-141,-140,-141,-141,-261,-305,-302,-324,-322,-316,-316,-317,-313,-374,-525,-510,-657,-351,-429,-442,-442,-442,-1168,-1171,-1170,-1161,-914,-914,-1146,-1119,-1133,-1137,-1135,-1129,-1100,-1070,-1100,-1091,-1027,-954,-838,-798,-725,-725,-2974,-2761,-29959,-29959,-29961,-29963,-29963,-29963,-29964,-29965,-29965,-29966,-29966,-29967,-29967,-29966,-29968,-29965,-29965,-29963,-29959,-29958,-29968,-29969,-29969,-29971,-29968,-29960,-6617,-4714,-29974,-29975,-29974,-29975,-29975,-29976,-29979,-29974,-29967,-29969,-29983,-29984,-29984,-29985,-29985,-29980]} 1. e4 {[%emt 0:00:02]} d5 {[%emt 0:00:07]} 2. exd5 {[%emt 0:00:05]} Qxd5 {[%emt 0:00:08]} 3. Nc3 {[%emt 0:00:06]} Qd6 {[%emt 0:00:07]} 4. d4 {[%emt 0:00:12]} Nf6 {[%emt 0:00:07]} 5. Nf3 {[%emt 0:00:04][%cal Bg1f3,Bf3e5,Be5c4][%mdl 32]} c6 {[%emt 0:00:07]} 6. Ne5 {[%emt 0:11:35]} Nbd7 {[%emt 0:00:15] B01: Scandinavian Defence.} 7. Nc4 {[%emt 0:00:43]} Qc7 {[%emt 0:00:10]} 8. g3 {[%emt 0:10:17]} Nb6 {[%emt 0:00:30] The position is equal.} 9. Bf4 {[%emt 0:00:04]} Qd8 {[%emt 0:00:28]} 10. Qd2 {[%emt 0:01:57]} Be6 {[%emt 0:06:29] [#]} 11. Nxb6 $146 {[%emt 0:03:02]} ({Predecessor:} 11. Ne5 g6 12. Bg2 Bg7 13. O-O O-O 14. Rfe1 Nfd5 15. Bh6 Nxc3 16. Bxg7 Kxg7 17. Qxc3 Nd5 {½-½ (17) Liwak,P (2340)-Malaniuk,V (2539) Barlinek 2006}) 11... axb6 {[%emt 0:00:30]} 12. Bg2 {[%emt 0:00:30]} g6 {[%emt 0:15:15]} 13. Be5 {[%emt 0:06:03]} Bg7 {[%emt 0:00:35]} 14. O-O {[%emt 0:00:40]} O-O {[%emt 0:00:30]} 15. h3 {[%emt 0:00:30]} Qd7 {[%emt 0:03:31]} 16. h4 {[%emt 0:08:56]} Rfd8 {[%emt 0:11:42][%cal Of6e4]} 17. Rfe1 {[%emt 0:00:31] Inhibits Ne4.} Ra5 {[%emt 0:09:32][%cal Oa5e5]} 18. a3 {[%emt 0:05:02]} Rxe5 {[%emt 0:28:39]} 19. Rxe5 {[%emt 0:00:23]} Ng4 {[%emt 0:00:05]} 20. Re2 {[%emt 0:23:47]} Bc4 {[%emt 0:00:23] This bishop pair is nice.} 21. Rd1 {[%emt 0:04:54]} (21. Re4 $11) 21... Bxe2 $15 {[%emt 0:10:35]} 22. Nxe2 {[%emt 0:04:39]} Qf5 {[%emt 0:00:51]} 23. Rf1 {[%emt 0:00:23]} e5 {[%emt 0:04:05][%cal Re5d4]} 24. c3 {[%emt 0:02:08]} exd4 {[%emt 0:00:44]} (24... h5 $15) 25. cxd4 {[%emt 0:01:19]} (25. Nxd4 $11 c5 26. Nxf5 Rxd2 27. Nxg7 Kxg7 28. b4) 25... h5 {[%emt 0:03:17]} 26. Qd1 {[%emt 0:03:54] [#]} (26. d5 $15) 26... Bxd4 $1 $17 {[%emt 0:03:23][%mdl 512] Black has more active pieces.} 27. Nxd4 {[%emt 0:00:09]} Qf6 {[%emt 0:00:04]} 28. Qe2 {[%emt 0:05:03]} Qxd4 {[%emt 0:00:20]} 29. Qe7 {[%emt 0:00:36]} Qd7 {[%emt 0:01:44]} (29... Rd6 $19 30. Qe2 Kg7) 30. Qb4 {[%emt 0:00:35]} b5 {[%emt 0:00:23]} 31. Re1 {[%emt 0:01:28]} (31. Bh3 $17 {keeps fighting.}) 31... Kg7 {[%emt 0:00:24]} 32. Bf3 {[%emt 0:04:07]} Qd2 {[%emt 0:00:33]} 33. Qxd2 {[%emt 0:00:38]} Rxd2 {[%emt 0:00:01][%cal Bd8d2,Bd2b2,Bb2e2,Be2e3,Be3a3,Ba3c3,Bc3c4,Bc4e4][%mdl 4128] Endgame KRB-KRN} 34. Re7 {[%emt 0:00:11]} (34. Bxg4 $17 {was worth a try.} hxg4 35. Rb1) 34... Rxb2 $19 {[%emt 0:01:08]} ({Worse is} 34... Nxf2 35. Rxb7 Rc2 36. Rb6 $17) 35. Rxb7 {[%emt 0:00:15]} Ne5 {[%emt 0:00:09]} ({Inferior is} 35... Nxf2 36. Bxc6 Ng4 37. Rxb5 $11) 36. Be4 {[%emt 0:00:58]} Re2 {[%emt 0:00:34]} 37. f3 {[%emt 0:00:57]} Re3 {[%emt 0:00:05][%csl LRa3,LRf3]} 38. Kg2 {[%emt 0:00:38]} Rxa3 {[%emt 0:00:07]} 39. Rb6 {[%emt 0:00:59]} (39. f4 $142 Re3 40. Bd5) 39... Rc3 {[%emt 0:00:18]} 40. f4 {[%emt 0:00:00]} Rc4 {[%emt 0:00:00]} 41. fxe5 {[%emt 0:02:15] [#] Black must now prevent Kf3.} Rxe4 {[%emt 0:01:17]} 42. Rxc6 {[%emt 0:00:04]} Rxe5 {[%emt 0:00:04] Hoping for ...Re6. KR-KR} 43. Kf3 {[%emt 0:00:09]} (43. Rb6 $142) 43... Re6 {[%emt 0:00:21]} 44. Rc3 {[%emt 0:00:57]} b4 {[%emt 0:02:04]} 45. Rb3 {[%emt 0:00:08]} Rb6 {[%emt 0:00:07]} 46. Ke4 {[%emt 0:00:02]} Kf6 {[%emt 0:00:07]} 47. Rf3+ {[%emt 0:00:03]} Ke6 {[%emt 0:00:06] And now ...b3 would win.} 48. Rb3 {[%emt 0:00:03]} f6 {[%emt 0:00:10]} 49. Kd4 {[%emt 0:00:16]} Kf5 {[%emt 0:01:15]} 50. Ke3 {[%emt 0:00:19]} Ke5 {[%emt 0:02:01]} 51. Kd3 {[%emt 0:00:06]} Kd5 {[%emt 0:00:05]} 52. Kc2 {[%emt 0:00:19]} Ke4 {[%emt 0:00:47]} 53. Kd2 {[%emt 0:00:05]} f5 {[%emt 0:05:15] Threatens to win with ...f4.} 54. Ke2 {[%emt 0:00:24]} f4 {[%emt 0:00:23]} 55. Kd2 {[%emt 0:00:37]} fxg3 {[%emt 0:02:11]} 56. Rxg3 {[%emt 0:00:07]} b3 {[%emt 0:00:13][%cal Bb4b3,Bb3b2][%mdl 32]} 57. Kc1 {[%emt 0:00:02]} b2+ {[%emt 0:00:04]} 58. Kb1 {[%emt 0:00:06]} Kf5 {[%emt 0:00:07]} 59. Rg5+ {[%emt 0:00:27]} Kf6 {[%emt 0:00:12]} 60. Rg2 {[%emt 0:04:08]} Rb4 {[%emt 0:01:25]} 61. Rf2+ {[%emt 0:00:22]} Ke5 {[%emt 0:00:24]} 62. Re2+ {[%emt 0:00:53]} Kf4 {[%emt 0:04:28]} 63. Rg2 {[%emt 0:00:16]} Rb6 {[%emt 0:00:02]} 64. Rg5 {[%emt 0:00:30]} Ke3 {[%emt 0:00:58]} 65. Rg1 {[%emt 0:01:18]} Kf3 {[%emt 0:00:40]} 66. Rg5 {[%emt 0:01:45]} Kf2 {[%emt 0:00:05]} 67. Rc5 {[%emt 0:00:38]} Rb4 {[%emt 0:00:21]} 68. Rc6 {[%emt 0:00:15]} Rg4 {[%emt 0:00:14] ( -> ...Kg3)} 69. Kxb2 {[%emt 0:00:07]} Kg3 {[%emt 0:00:02] Black mates.} 70. Kc2 {[%emt 0:00:16]} Kxh4 {[%emt 0:00:04]} 71. Kd2 {[%emt 0:00:42]} Kg3 {[%emt 0:00:07]} 72. Ke1 {[%emt 0:00:10]} Kg2 {[%emt 0:00:14]} 73. Rc2+ {[%emt 0:00:30]} Kg1 {[%emt 0:00:09]} 74. Rc3 {[%emt 0:00:35]} h4 {[%emt 0:00:13]} 75. Ke2 {[%emt 0:00:37]} Rg2+ {[%emt 0:00:13]} 76. Ke1 {[%emt 0:00:04]} Rg3 {[%emt 0:00:05] Weighted Error Value: White=0.34/Black=0.12 (very precise)} 0-1

[Event "Croatian 1B League 2022"]
[Site "Porec"]
[Date "2022.09.29"]
[Round "6.9"]
[White "Majeric, Zoran"]
[Black "Muha, Miljenko"]
[Result "1/2-1/2"]
[ECO "D02"]
[WhiteElo "2247"]
[BlackElo "2298"]
[Annotator "TA"]
[PlyCount "73"]
[EventDate "2022.09.24"]
[EventType "team-tourn"]
[EventCountry "CRO"]
[SourceTitle "playchess.com"]
[Source "ChessBase"]
[SourceQuality "1"]
[TimeControl "40/5400+30:1800+30"]

{[%evp 9,73,37,61,39,48,41,48,56,54,66,68,35,37,17,19,16,26,27,17,19,62,-7,0,0,0,-12,0,0,0,-3,5,0,10,6,9,0,0,0,0,0,0,0,31,0,0,0,0,0,0,0,0,0,10,8,0,9,10,15,8,0,0,0,0,0,0,0]} 1. Nf3 {[%emt 0:00:01]} d5 {[%emt 0:00:40]} 2. g3 {[%emt 0:00:28]} Nd7 {[%emt 0:08:15]} 3. d4 {[%emt 0:00:39]} Nb6 {[%emt 0:00:57]} 4. Bg2 {[%emt 0:00:30]} Nf6 {[%emt 0:00:52]} 5. O-O {[%emt 0:00:30]} e6 {[%emt 0:01:51]} 6. Nbd2 {[%emt 0:08:48] D02: 1 d4 d5 2 Nf3 sidelines, including 2...Nf6 3 g3 and 2...Nf6 3 Bf4.} c5 {[%emt 0:04:40] [#]} 7. e3 $146 {[%emt 0:16:01]} ({Predecessor:} 7. c4 cxd4 8. cxd5 Nfxd5 9. Nb3 Be7 10. Nbxd4 O-O 11. e4 Nb4 12. e5 Bd7 13. Qe2 {1-0 (120) Petrukhina,O (2166)-Nasyrova,E (2153) Cheliabinsk 2019}) 7... Bd7 {[%emt 0:09:08]} 8. Ne5 {[%emt 0:07:47] White is slightly better.} Be7 {[%emt 0:08:53]} 9. dxc5 {[%emt 0:06:05]} Bxc5 {[%emt 0:01:10]} 10. c4 {[%emt 0:11:01] Inhibits Bb5. White is more active.} O-O {[%emt 0:03:03]} 11. Nxd7 {[%emt 0:07:11]} Qxd7 {[%emt 0:02:27]} 12. cxd5 {[%emt 0:00:17]} Nbxd5 {[%emt 0:01:34]} 13. Nb3 {[%emt 0:04:57]} Bb6 {[%emt 0:03:11]} 14. Bd2 {[%emt 0:01:16]} Qa4 {[%emt 0:04:06] [#]} 15. Nd4 {[%emt 0:03:20]} (15. Na5 $1 $14 Qb5 16. a4) 15... Qxd1 $11 {[%emt 0:01:07]} 16. Rfxd1 {[%emt 0:00:09]} Bxd4 {[%emt 0:00:06]} 17. exd4 {[%emt 0:00:07]} Rfc8 {[%emt 0:01:14]} 18. Rac1 {[%emt 0:00:13]} h6 {[%emt 0:01:11]} 19. Kf1 {[%emt 0:00:23]} Kf8 {[%emt 0:00:42]} 20. Ke2 {[%emt 0:00:14]} Ke7 {[%emt 0:00:20]} 21. h3 {[%emt 0:00:30]} Kd7 {[%emt 0:00:32]} 22. f4 {[%emt 0:04:56]} Rxc1 {[%emt 0:05:18]} 23. Rxc1 {[%emt 0:00:15]} Rd8 {[%emt 0:00:33]} 24. g4 {[%emt 0:01:18]} Ke7 {[%emt 0:03:52]} 25. Bf3 {[%emt 0:01:17]} Ne8 {[%emt 0:02:06]} 26. g5 {[%emt 0:02:40]} hxg5 {[%emt 0:01:51] The position is equal.} 27. fxg5 {[%emt 0:00:19]} g6 {[%emt 0:02:16]} 28. Kd3 {[%emt 0:04:04]} Ng7 {[%emt 0:01:33]} 29. Bxd5 {[%emt 0:01:40]} exd5 {[%emt 0:04:29][%mdl 4096] Endgame KRB-KRN} 30. h4 {[%emt 0:06:36]} Rd7 {[%emt 0:17:08]} 31. Bf4 {[%emt 0:02:23]} Nf5 {[%emt 0:07:54]} 32. Rh1 {[%emt 0:01:41]} a6 {[%emt 0:02:02]} 33. Be5 {[%emt 0:00:33]} Ke6 {[%emt 0:00:26]} 34. h5 {[%emt 0:00:23]} gxh5 {[%emt 0:00:11]} 35. Rxh5 {[%emt 0:00:14]} Rd8 {[%emt 0:00:24]} 36. Rh1 {[%emt 0:00:38]} Rg8 {[%emt 0:00:18]} 37. Bf4 {[%emt 0:05:06] Weighted Error Value: White=0.09 (flawless) /Black=0.05 (flawless)} 1/2-1/2